{"text_format":"3","workbook":"xlsx","n_sheets":7,"sheets":["Понедельник","Вторник","Среда","Четверг","Пятница","Суббота","Воскресенье"],"not_rendered":{"defined_names":24},"read":"whole","date_system":"1900"}

{"sheet":"Понедельник","index":0,"n_rows":10,"n_cols":13,"rows_kept":10,"merged":[[1,1,2,1],[1,2,1,10],[1,11,1,12],[2,2,2,10],[2,11,2,12]]}
[null,"РАСПИСАНИЕ СМЕН"]
[null,"ПОНЕДЕЛЬНИК","На неделю: ",{"$nulls":8},"ДАТА"]
[null,null,"Название отдела: ",{"$nulls":8},"ОТДЕЛ"]
[null,"Имя сотрудника","7:00","8:00","9:00","10:00","11:00","12:00","13:00","14:00","15:00","Больничный?","ИТОГО"]
[null,"Арина И.","менеджер","менеджер","менеджер","менеджер","менеджер","менеджер","менеджер","менеджер","менеджер",null,{"$f":"IFERROR(COUNTIF(Понедельник[[#This Row],[7:00]:[15:00]],\"*\"),\"\")","v":9}]
[null,"Илья Г.",null,"кассир","кассир","кассир","кассир",{"$nulls":5},{"$f":"IFERROR(COUNTIF(Понедельник[[#This Row],[7:00]:[15:00]],\"*\"),\"\")","v":4}]
[null,"Кирилл К.",null,"приемная","приемная","приемная","приемная ","приемная","приемная","приемная",null,null,{"$f":"IFERROR(COUNTIF(Понедельник[[#This Row],[7:00]:[15:00]],\"*\"),\"\")","v":7}]
[null,"Иван В.",null,"приемная","приемная","приемная","приемная ","приемная","приемная","приемная",null,null,{"$f":"IFERROR(COUNTIF(Понедельник[[#This Row],[7:00]:[15:00]],\"*\"),\"\")","v":7}]
[null,"Дмитрий Д.",{"$nulls":10},{"$f":"IFERROR(COUNTIF(Понедельник[[#This Row],[7:00]:[15:00]],\"*\"),\"\")","v":0}]
[null,"Лилия М.",{"$nulls":5},"кассир","кассир","кассир","кассир",null,{"$f":"IFERROR(COUNTIF(Понедельник[[#This Row],[7:00]:[15:00]],\"*\"),\"\")","v":4}]

{"sheet":"Вторник","index":1,"n_rows":10,"n_cols":13,"rows_kept":10,"merged":[[1,1,2,1],[1,2,1,10],[1,11,1,12],[2,2,2,10],[2,11,2,12]]}
[null,{"$f":"РАСПИСАНИЕ_СМЕН_Заголовок","v":"РАСПИСАНИЕ СМЕН"}]
[null,"ВТОРНИК","На неделю: ",{"$nulls":8},{"$f":"ДАТА","v":"ДАТА"}]
[null,null,"Название отдела: ",{"$nulls":8},{"$f":"ОТДЕЛ","v":"ОТДЕЛ"}]
[null,"Имя сотрудника","7:00","8:00","9:00","10:00","11:00","12:00","13:00","14:00","15:00","Больничный?","ИТОГО"]
[null,"Арина И.","менеджер","менеджер","менеджер","менеджер","менеджер","менеджер","менеджер","менеджер","менеджер",null,{"$f":"IFERROR(COUNTIF(Вторник[[#This Row],[7:00]:[15:00]],\"*\"),\"\")","v":9}]
[null,"Илья Г.",null,"кассир","кассир","кассир","кассир",{"$nulls":5},{"$f":"IFERROR(COUNTIF(Вторник[[#This Row],[7:00]:[15:00]],\"*\"),\"\")","v":4}]
[null,"Кирилл К.",null,"приемная","приемная","приемная","приемная ","приемная","приемная","приемная",null,null,{"$f":"IFERROR(COUNTIF(Вторник[[#This Row],[7:00]:[15:00]],\"*\"),\"\")","v":7}]
[null,"Иван В.",null,"приемная","приемная","приемная","приемная ","приемная","приемная","приемная",null,null,{"$f":"IFERROR(COUNTIF(Вторник[[#This Row],[7:00]:[15:00]],\"*\"),\"\")","v":7}]
[null,"Дмитрий Д.",{"$nulls":9},"Больничный",{"$f":"IFERROR(COUNTIF(Вторник[[#This Row],[7:00]:[15:00]],\"*\"),\"\")","v":0}]
[null,"Лилия М.",{"$nulls":5},"кассир","кассир","кассир","кассир",null,{"$f":"IFERROR(COUNTIF(Вторник[[#This Row],[7:00]:[15:00]],\"*\"),\"\")","v":4}]

{"sheet":"Среда","index":2,"n_rows":10,"n_cols":13,"rows_kept":10,"merged":[[1,1,2,1],[1,2,1,10],[1,11,1,12],[2,2,2,10],[2,11,2,12]]}
[null,{"$f":"РАСПИСАНИЕ_СМЕН_Заголовок","v":"РАСПИСАНИЕ СМЕН"}]
[null,"СРЕДА","На неделю: ",{"$nulls":8},{"$f":"ДАТА","v":"ДАТА"}]
[null,null,"Название отдела: ",{"$nulls":8},{"$f":"ОТДЕЛ","v":"ОТДЕЛ"}]
[null,"Имя сотрудника","7:00","8:00","9:00","10:00","11:00","12:00","13:00","14:00","15:00","Больничный?","ИТОГО"]
[null,"Арина И.","менеджер","менеджер","менеджер","менеджер","менеджер","менеджер","менеджер","менеджер","менеджер",null,{"$f":"IFERROR(COUNTIF(Среда[[#This Row],[7:00]:[15:00]],\"*\"),\"\")","v":9}]
[null,"Илья Г.",null,"кассир","кассир","кассир","кассир",{"$nulls":5},{"$f":"IFERROR(COUNTIF(Среда[[#This Row],[7:00]:[15:00]],\"*\"),\"\")","v":4}]
[null,"Кирилл К.",null,"приемная","приемная","приемная","приемная ","приемная","приемная","приемная",null,null,{"$f":"IFERROR(COUNTIF(Среда[[#This Row],[7:00]:[15:00]],\"*\"),\"\")","v":7}]
[null,"Иван В.",null,"приемная","приемная","приемная","приемная ","приемная","приемная","приемная",null,null,{"$f":"IFERROR(COUNTIF(Среда[[#This Row],[7:00]:[15:00]],\"*\"),\"\")","v":7}]
[null,"Дмитрий Д.",{"$nulls":9},"Больничный",{"$f":"IFERROR(COUNTIF(Среда[[#This Row],[7:00]:[15:00]],\"*\"),\"\")","v":0}]
[null,"Лилия М.",{"$nulls":5},"кассир","кассир","кассир","кассир",null,{"$f":"IFERROR(COUNTIF(Среда[[#This Row],[7:00]:[15:00]],\"*\"),\"\")","v":4}]

{"sheet":"Четверг","index":3,"n_rows":10,"n_cols":13,"rows_kept":10,"merged":[[1,1,2,1],[1,2,1,10],[1,11,1,12],[2,2,2,10],[2,11,2,12]]}
[null,{"$f":"РАСПИСАНИЕ_СМЕН_Заголовок","v":"РАСПИСАНИЕ СМЕН"}]
[null,"ЧЕТВЕРГ","На неделю: ",{"$nulls":8},{"$f":"ДАТА","v":"ДАТА"}]
[null,null,"Название отдела: ",{"$nulls":8},{"$f":"ОТДЕЛ","v":"ОТДЕЛ"}]
[null,"Имя сотрудника","7:00","8:00","9:00","10:00","11:00","12:00","13:00","14:00","15:00","Больничный?","ИТОГО"]
[null,"Арина И.","менеджер","менеджер","менеджер","менеджер","менеджер","менеджер","менеджер","менеджер","менеджер",null,{"$f":"IFERROR(COUNTIF(Четверг[[#This Row],[7:00]:[15:00]],\"*\"),\"\")","v":9}]
[null,"Илья Г.",null,"кассир","кассир","кассир","кассир",{"$nulls":5},{"$f":"IFERROR(COUNTIF(Четверг[[#This Row],[7:00]:[15:00]],\"*\"),\"\")","v":4}]
[null,"Кирилл К.",null,"приемная","приемная","приемная","приемная ","приемная","приемная","приемная",null,null,{"$f":"IFERROR(COUNTIF(Четверг[[#This Row],[7:00]:[15:00]],\"*\"),\"\")","v":7}]
[null,"Иван В.",null,"приемная","приемная","приемная","приемная ","приемная","приемная","приемная",null,null,{"$f":"IFERROR(COUNTIF(Четверг[[#This Row],[7:00]:[15:00]],\"*\"),\"\")","v":7}]
[null,"Дмитрий Д.",{"$nulls":9},"Больничный",{"$f":"IFERROR(COUNTIF(Четверг[[#This Row],[7:00]:[15:00]],\"*\"),\"\")","v":0}]
[null,"Лилия М.",{"$nulls":5},"кассир","кассир","кассир","кассир",null,{"$f":"IFERROR(COUNTIF(Четверг[[#This Row],[7:00]:[15:00]],\"*\"),\"\")","v":4}]

{"sheet":"Пятница","index":4,"n_rows":10,"n_cols":13,"rows_kept":10,"merged":[[1,1,2,1],[1,2,1,10],[1,11,1,12],[2,2,2,10],[2,11,2,12]]}
[null,{"$f":"РАСПИСАНИЕ_СМЕН_Заголовок","v":"РАСПИСАНИЕ СМЕН"}]
[null,"ПЯТНИЦА","На неделю: ",{"$nulls":8},{"$f":"ДАТА","v":"ДАТА"}]
[null,null,"Название отдела: ",{"$nulls":8},{"$f":"ОТДЕЛ","v":"ОТДЕЛ"}]
[null,"Имя сотрудника","7:00","8:00","9:00","10:00","11:00","12:00","13:00","14:00","15:00","Больничный?","ИТОГО"]
[null,"Арина И.","менеджер","менеджер","менеджер","менеджер","менеджер","менеджер","менеджер","менеджер","менеджер",null,{"$f":"IFERROR(COUNTIF(Пятница[[#This Row],[7:00]:[15:00]],\"*\"),\"\")","v":9}]
[null,"Илья Г.",null,"кассир","кассир","кассир","кассир",{"$nulls":5},{"$f":"IFERROR(COUNTIF(Пятница[[#This Row],[7:00]:[15:00]],\"*\"),\"\")","v":4}]
[null,"Кирилл К.",null,"приемная","приемная","приемная","приемная ","приемная","приемная","приемная",null,null,{"$f":"IFERROR(COUNTIF(Пятница[[#This Row],[7:00]:[15:00]],\"*\"),\"\")","v":7}]
[null,"Иван В.",null,"приемная","приемная","приемная","приемная ","приемная","приемная","приемная",null,null,{"$f":"IFERROR(COUNTIF(Пятница[[#This Row],[7:00]:[15:00]],\"*\"),\"\")","v":7}]
[null,"Дмитрий Д.",{"$nulls":9},"Больничный",{"$f":"IFERROR(COUNTIF(Пятница[[#This Row],[7:00]:[15:00]],\"*\"),\"\")","v":0}]
[null,"Лилия М.",{"$nulls":5},"кассир","кассир","кассир","кассир",null,{"$f":"IFERROR(COUNTIF(Пятница[[#This Row],[7:00]:[15:00]],\"*\"),\"\")","v":4}]

{"sheet":"Суббота","index":5,"n_rows":10,"n_cols":13,"rows_kept":10,"merged":[[1,1,2,1],[1,2,1,10],[1,11,1,12],[2,2,2,10],[2,11,2,12]]}
[null,{"$f":"РАСПИСАНИЕ_СМЕН_Заголовок","v":"РАСПИСАНИЕ СМЕН"}]
[null,"СУББОТА","На неделю: ",{"$nulls":8},{"$f":"ДАТА","v":"ДАТА"}]
[null,null,"Название отдела: ",{"$nulls":8},{"$f":"ОТДЕЛ","v":"ОТДЕЛ"}]
[null,"Имя сотрудника","7:00","8:00","9:00","10:00","11:00","12:00","13:00","14:00","15:00","Больничный?","ИТОГО"]
[null,"Арина И.","менеджер","менеджер","менеджер","менеджер","менеджер","менеджер","менеджер","менеджер","менеджер",null,{"$f":"IFERROR(COUNTIF(Суббота[[#This Row],[7:00]:[15:00]],\"*\"),\"\")","v":9}]
[null,"Илья Г.",null,"кассир","кассир","кассир","кассир",{"$nulls":5},{"$f":"IFERROR(COUNTIF(Суббота[[#This Row],[7:00]:[15:00]],\"*\"),\"\")","v":4}]
[null,"Кирилл К.",null,"приемная","приемная","приемная","приемная ","приемная","приемная","приемная",null,null,{"$f":"IFERROR(COUNTIF(Суббота[[#This Row],[7:00]:[15:00]],\"*\"),\"\")","v":7}]
[null,"Иван В.",null,"приемная","приемная","приемная","приемная ","приемная","приемная","приемная",null,null,{"$f":"IFERROR(COUNTIF(Суббота[[#This Row],[7:00]:[15:00]],\"*\"),\"\")","v":7}]
[null,"Дмитрий Д.",{"$nulls":9},"Больничный",{"$f":"IFERROR(COUNTIF(Суббота[[#This Row],[7:00]:[15:00]],\"*\"),\"\")","v":0}]
[null,"Лилия М.",{"$nulls":5},"кассир","кассир","кассир","кассир",null,{"$f":"IFERROR(COUNTIF(Суббота[[#This Row],[7:00]:[15:00]],\"*\"),\"\")","v":4}]

{"sheet":"Воскресенье","index":6,"n_rows":10,"n_cols":13,"rows_kept":10,"merged":[[1,1,2,1],[1,2,1,10],[1,11,1,12],[2,2,2,10],[2,11,2,12]]}
[null,{"$f":"РАСПИСАНИЕ_СМЕН_Заголовок","v":"РАСПИСАНИЕ СМЕН"}]
[null,"ВОСКРЕСЕНЬЕ","На неделю: ",{"$nulls":8},{"$f":"ДАТА","v":"ДАТА"}]
[null,null,"Название отдела: ",{"$nulls":8},{"$f":"ОТДЕЛ","v":"ОТДЕЛ"}]
[null,"Имя сотрудника","7:00","8:00","9:00","10:00","11:00","12:00","13:00","14:00","15:00","Больничный?","ИТОГО"]
[null,"Арина И.","менеджер","менеджер","менеджер","менеджер","менеджер","менеджер","менеджер","менеджер","менеджер",null,{"$f":"IFERROR(COUNTIF(Воскресенье[[#This Row],[7:00]:[15:00]],\"*\"),\"\")","v":9}]
[null,"Илья Г.",null,"кассир","кассир","кассир","кассир",{"$nulls":5},{"$f":"IFERROR(COUNTIF(Воскресенье[[#This Row],[7:00]:[15:00]],\"*\"),\"\")","v":4}]
[null,"Кирилл К.",null,"приемная","приемная","приемная","приемная ","приемная","приемная","приемная",null,null,{"$f":"IFERROR(COUNTIF(Воскресенье[[#This Row],[7:00]:[15:00]],\"*\"),\"\")","v":7}]
[null,"Иван В.",null,"приемная","приемная","приемная","приемная ","приемная","приемная","приемная",null,null,{"$f":"IFERROR(COUNTIF(Воскресенье[[#This Row],[7:00]:[15:00]],\"*\"),\"\")","v":7}]
[null,"Дмитрий Д.",{"$nulls":9},"Больничный",{"$f":"IFERROR(COUNTIF(Воскресенье[[#This Row],[7:00]:[15:00]],\"*\"),\"\")","v":0}]
[null,"Лилия М.",{"$nulls":5},"кассир","кассир","кассир","кассир",null,{"$f":"IFERROR(COUNTIF(Воскресенье[[#This Row],[7:00]:[15:00]],\"*\"),\"\")","v":4}]